bitfinex/quotes_ETHUSD_20250414
["timestamp","ask_amount","ask_price","bid_price","bid_amount"]
[1744625972455,0.055,1652.4,1652.3,5.64943]
[1744625972770,0.055,1652.4,1652.3,6.698563]
[1744625973172,0.005,1652.4,1652.3,6.698563]
[1744625974346,0.005,1652.4,1652.3,6.75906817]
[1744625974576,0.005,1652.4,1652.3,6.698563]
[1744625975282,0.005,1652.4,1652.3,6.75906819]
[1744625975469,0.005,1652.4,1652.3,6.698563]
[1744625976469,0.3979215,1653.1,1653.0,4.83968]
[1744625976673,0.3979215,1653.1,1653.0,6.126948]
[1744625976873,1.5e-06,1653.1,1653.0,15.89742786]
[1744625977153,1.5e-06,1653.1,1653.0,6.126948]
[1744625977879,1.5e-06,1653.1,1653.0,6.18742766]
[1744625978095,0.05,1653.4,1653.3,1.3114]
[1744625978096,1.5e-06,1653.4,1653.3,1.3114]
[1744625978272,6.22,1654.4,1654.0,4.8366]
[1744625978273,0.05,1654.4,1654.0,4.8366]
[1744625978582,0.05,1654.4,1654.1,4.83636]
[1744625978777,0.05,1654.4,1654.2,4.8361]
[1744625979171,0.05,1654.4,1654.3,8.95406556]
[1744625979368,0.05,1654.4,1654.3,6.97629656]
[1744625979885,0.05,1654.4,1654.3,5.59728]
[1744625980179,0.05,1654.4,1654.3,4.83588]
[1744625980382,0.05,1654.4,1654.1,4.83645]
[1744625980682,0.05,1654.4,1654.2,4.83614]
[1744625980882,0.05,1654.4,1654.2,4.83612]
[1744625981079,0.05,1654.4,1654.2,5.803304]
[1744625981381,0.05,1654.4,1654.3,4.83588]
[1744625983557,0.05,1654.4,1654.3,4.89631998]
[1744625983757,0.05,1654.4,1654.2,4.83606]
[1744625983957,0.05,1654.4,1654.3,4.83588]
[1744625984182,0.05,1654.4,1654.2,4.83599]
[1744625984373,0.05,1654.4,1654.1,4.83643]
[1744625984574,0.05,1654.4,1654.2,4.83616]
[1744625984983,4.88564,1654.4,1654.1,4.83643]
[1744625985194,0.05,1654.4,1654.1,4.83643]
[1744625985577,0.05,1654.4,1654.1,4.89687877]
[1744625985781,0.05,1654.4,1654.1,4.83646]
[1744625985965,0.05,1654.4,1654.2,4.83604]
[1744625986165,0.05,1654.4,1654.3,4.83588]
[1744625986368,0.05,1654.4,1654.3,4.89632158]
[1744625986569,0.05,1654.4,1654.3,4.83588]
[1744625988084,0.05,1654.4,1654.3,5.63778]
[1744625988413,0.05,1654.4,1654.2,9.67206]
[1744625988581,0.05,1654.4,1654.3,4.89632152]
[1744625988905,0.05,1654.4,1654.3,5.80911415]
[1744625989121,0.05,1654.4,1654.2,4.83602]
[1744625989407,0.05,1654.4,1654.3,4.83588]
[1744625989758,0.05,1654.4,1654.2,4.83602]
[1744625989962,4.88582,1654.4,1654.0,4.8367]
[1744625990165,0.05,1654.4,1653.9,0.8019]
[1744625990472,0.05,1654.4,1654.2,4.8359]
[1744625991026,0.05,1654.4,1654.3,4.83588]
[1744625991191,0.05,1654.4,1654.2,5.31949]
[1744625991404,0.05,1654.4,1654.3,4.83588]
[1744625991691,0.05,1654.4,1654.3,5.62278]
[1744625992529,0.55,1654.8,1654.6,5.5947]
[1744625992817,0.55,1654.8,1654.5,4.83516]
[1744625992818,0.3979215,1656.3,1655.5,0.55]
[1744625993019,5.65974,1656.1,1655.6,4.83191]
[1744625993162,4.83113,1656.0,1655.2,4.83301]
[1744625993368,11.2101,1655.9,1655.2,4.8331]
[1744625993622,11.2101,1655.9,1655.2,4.83307]
[1744625993623,4.83168,1655.8,1655.2,4.83307]
[1744625993799,0.483168,1655.7,1654.9,4.83404]
[1744625994001,0.7648,1655.8,1654.8,0.7597]
[1744625994210,4.83274,1655.4,1654.9,4.83397]
[1744625994415,4.83274,1655.4,1655.0,4.83358]
[1744625994664,4.83291,1655.4,1654.9,4.83398]
[1744625994891,4.83255,1655.5,1655.1,4.83344]
[1744625995089,6.17,1655.9,1655.0,0.06041535]
[1744625995090,0.7822,1656.1,1655.3,5.60673]
[1744625995293,0.7822,1656.1,1655.5,4.83237]
[1744625995294,4.8312,1655.9,1655.5,4.83237]
[1744625995594,6.9522,1656.1,1655.5,4.83212]
[1744625995595,0.7822,1656.1,1655.5,4.83212]
[1744625995790,0.7822,1656.1,1655.4,4.83265]
[1744625995791,4.83123,1655.9,1655.4,4.83265]
[1744625996131,7.379,1655.9,1655.0,5.66175]
[1744625996281,4.83299,1655.3,1654.8,4.83441]
[1744625996482,9.66679,1655.2,1654.8,4.83423]
[1744625996677,3.0,1655.4,1654.7,5.66264]
[1744625997041,4.83375,1655.1,1654.7,5.66264]
[1744625997482,4.83375,1655.1,1654.7,10.49722]
[1744625997685,4.83327,1655.2,1654.8,4.8344]
[1744625997922,5.799893,1655.2,1654.8,4.89473121]
[1744625998222,10.633383,1655.2,1654.8,4.83431]
[1744625998433,10.633403,1655.2,1654.8,4.83431]
[1744625998929,4.83425,1654.9,1654.6,7.379]
[1744625999141,4.83384,1655.0,1654.6,4.835]
[1744625999280,5.87602,1655.0,1654.6,4.835]
[1744626000180,1.04218,1655.0,1654.6,4.8349]
[1744626000380,1.04218,1655.0,1654.7,4.8347]
[1744626000624,0.8172,1655.4,1655.0,4.8336]
[1744626000822,0.8172,1655.4,1655.2,4.8332]
[1744626000978,0.8172,1655.6,1655.2,4.83308]
[1744626001387,5.64939,1655.6,1655.2,9.66623]
[1744626001588,0.564939,1655.5,1655.2,4.83308]
[1744626001790,0.8172,1655.6,1655.3,4.83293]
[1744626001996,0.8172,1655.6,1655.4,9.66516]
[1744626002192,0.8172,1655.6,1655.2,4.83323]
[1744626002514,0.8172,1655.6,1655.1,4.83347]
[1744626002515,0.7379,1655.8,1655.1,4.83353]
[1744626002716,5.59997,1655.9,1655.5,4.83222]
[1744626002894,0.7685,1655.9,1655.3,0.06039899]
[1744626003218,4.83215,1655.6,1655.2,4.8332]
[1744626003392,4.8318,1655.7,1655.2,0.06040675]
[1744626003598,3.7685,1655.9,1655.2,0.06040675]
[1744626003599,5.59982,1655.9,1655.2,4.89364675]
[1744626003808,3.0,1655.8,1655.5,4.83225]
[1744626003996,10.43121,1655.9,1655.6,4.83202]
[1744626003997,5.59982,1655.9,1655.6,4.83202]
[1744626004328,5.59974,1655.9,1655.5,4.83225]
[1744626004497,4.83151,1655.8,1655.5,4.83225]
[1744626004691,5.59974,1655.9,1655.5,4.83225]
[1744626004692,0.7685,1655.9,1655.5,0.06039609]
[1744626004897,0.7925,1656.2,1655.9,4.831]
[1744626005139,5.2280615,1656.3,1656.0,4.83091]
[1744626005431,5.03595026,1656.4,1656.3,6.20294]
[1744626005432,1.76e-06,1656.4,1656.3,6.20294]
[1744626005637,1.76e-06,1656.4,1656.3,5.65294]
[1744626005798,1.76e-06,1656.4,1656.3,7.03090033]
[1744626005996,1.76e-06,1656.4,1656.3,7.58090033]
[1744626006208,4.82716,1657.3,1656.4,5.3795]
[1744626006423,0.05,1657.4,1656.7,5.64266]
[1744626006636,4.87708,1657.4,1656.4,0.7543]
[1744626006797,4.82872,1656.8,1656.4,0.7543]
[1744626006997,0.7567,1657.0,1656.5,0.06035898]
[1744626007198,1.244408,1657.3,1656.4,0.7543]
[1744626007398,4.82769,1657.2,1656.5,0.06035899]
[1744626007599,4.83048,1656.2,1655.8,0.7931]
[1744626007801,4.83106,1656.0,1655.5,6.19799561]
[1744626008040,4.83106,1656.0,1655.6,4.83204]
[1744626008316,4.83079,1656.1,1655.7,0.06038959]
[1744626008530,4.82999,1656.4,1655.9,4.83116]
[1744626008743,5.60081,1656.6,1656.1,4.83036]
[1744626009034,5.60068,1656.6,1656.2,4.8302]
[1744626009332,4.82859,1656.8,1656.4,4.82974]
[1744626009535,11.81185,1657.2,1656.5,0.06036109]
[1744626009724,0.617,1657.1,1656.8,4.82846]
[1744626009920,4.87697,1657.4,1656.9,4.82805]
[1744626010121,4.87697,1657.4,1656.8,0.7944]
[1744626010122,4.87704,1657.4,1657.0,4.8278]
[1744626010435,3.29633326,1658.1,1656.4,50.089]
[1744626010436,0.3979215,1658.0,1657.9,5.61978]
[1744626010634,0.3979215,1658.0,1657.8,4.82565]
[1744626010939,0.3979215,1658.0,1657.6,5.62059]
[1744626011102,0.3979215,1658.0,1657.6,0.7944]
[1744626011302,0.3979215,1658.0,1657.8,9.65094]
[1744626011503,0.3979215,1658.0,1657.9,4.82538]
[1744626011715,0.3979215,1658.0,1657.9,5.37538]
[1744626011915,0.3979215,1658.0,1657.9,0.7966]
[1744626012116,0.3979215,1658.0,1657.7,4.82575]
[1744626012456,0.3979215,1658.0,1657.9,4.82538]
[1744626012641,0.3979215,1658.0,1657.7,4.82594]
[1744626012799,0.3979215,1658.0,1657.6,9.65232]
[1744626013109,4.8259,1657.8,1657.2,0.8302]
[1744626013309,4.1991215,1658.0,1657.2,0.8302]
[1744626013310,4.82627,1657.6,1657.2,0.8302]
[1744626013513,4.82666,1657.5,1657.2,0.8302]
[1744626013711,4.82685,1657.4,1657.0,4.82799]
[1744626013936,4.82625,1657.6,1656.9,0.7695]
[1744626014234,1.269825,1657.5,1657.0,0.06033725]
[1744626014435,7.947,1657.7,1657.0,4.82771]
[1744626014620,4.82645,1657.6,1657.1,4.82756]
[1744626014820,4.82659,1657.5,1657.1,4.82756]
[1744626015039,4.827,1657.4,1656.9,4.82826]
[1744626015234,4.827,1657.4,1657.0,4.82799]
[1744626015446,4.82725,1657.3,1656.8,4.82845]
[1744626015624,4.82873,1656.8,1656.3,5.63493]
[1744626015825,4.06503326,1657.3,1656.5,4.82932]
[1744626015826,4.8283,1656.9,1656.5,4.82932]
[1744626016029,4.8289,1656.7,1656.3,5.63492]
[1744626016241,4.82958,1656.5,1656.1,4.83038]
[1744626016551,0.7523,1656.7,1656.4,4.82954]
[1744626016753,0.965304,1657.5,1657.1,4.82768]
[1744626017053,4.82661,1657.5,1657.0,4.82776]
[1744626017220,4.82738,1657.3,1656.8,4.82847]
[1744626017420,9.65476,1657.3,1656.8,4.82847]
[1744626017743,4.82686,1657.4,1657.0,4.828]
[1744626017947,9.65475,1657.3,1656.9,4.8281]
[1744626018144,9.65475,1657.3,1656.6,4.82899]
[1744626018145,4.82811,1657.0,1656.6,4.82899]
[1744626018345,4.82773,1657.1,1656.7,0.06035151]
[1744626018661,4.82612,1657.7,1657.3,4.82711]
[1744626018956,4.82625,1657.6,1657.3,4.82711]
[1744626019253,4.82612,1657.7,1657.2,9.65465]
[1744626019455,0.482612,1657.6,1657.2,4.82725]
[1744626019851,4.82683,1657.4,1656.6,7.946]
[1744626020056,4.82671,1657.5,1656.9,4.82826]
[1744626020227,9.65222,1657.7,1657.3,4.82712]
[1744626020428,5.90397746,1657.7,1657.2,4.82738]
[1744626020650,4.82635,1657.6,1657.2,4.82738]
[1744626020849,5.90397746,1657.7,1657.3,4.82703]
[1744626021025,4.82642,1657.6,1657.1,4.82758]
[1744626021364,4.82666,1657.5,1657.1,4.82758]
[1744626021661,5.791968,1657.5,1657.1,4.82758]
[1744626021862,4.82642,1657.6,1657.2,4.82729]
[1744626022024,4.82642,1657.6,1657.2,9.65456]
[1744626022957,4.82642,1657.6,1657.2,4.82727]
[1744626023157,4.82659,1657.5,1657.2,4.82727]
[1744626023352,4.82659,1657.5,1657.1,4.8277]
[1744626023553,5.791891,1657.5,1657.1,9.65525]
[1744626023762,0.3979215,1658.0,1657.7,4.82592]
[1744626023963,0.3979215,1658.0,1657.9,4.82538]
[1744626024964,0.3979215,1658.0,1657.7,4.82585]
[1744626025157,0.3979215,1658.0,1657.9,4.82538]
[1744626025668,0.3979215,1658.0,1657.9,6.612965]
[1744626025862,0.3979215,1658.0,1657.9,6.67326997]
[1744626026064,0.3979215,1658.0,1657.9,4.82538]
[1744626026568,0.3979215,1658.0,1657.6,5.64872]
[1744626026765,0.3979215,1658.0,1657.9,4.82538]
[1744626027135,0.3979215,1658.0,1657.8,4.82554]
[1744626027335,5.2231215,1658.0,1657.6,4.82614]
[1744626027532,5.2231215,1658.0,1657.8,4.82564]
[1744626027533,0.3979215,1658.0,1657.8,4.82564]
[1744626027763,0.3979215,1658.0,1657.3,8.92933326]
[1744626027764,4.8258,1657.8,1657.4,4.8266]
[1744626027951,0.8091,1657.8,1657.2,4.82726]
[1744626028152,5.63477,1657.8,1657.0,5.65319]
[1744626028354,4.82679,1657.5,1657.1,4.82758]
[1744626028671,4.82755,1657.2,1656.9,8.251]
[1744626028869,4.82755,1657.2,1656.5,8.12554326]
[1744626028870,4.82831,1656.9,1656.4,0.8252]
[1744626029053,13.84871,1657.4,1656.4,0.8252]
[1744626029054,4.82805,1657.0,1656.7,4.82883]
[1744626029387,4.82874,1656.8,1656.2,4.8303]
[1744626029583,4.82874,1656.8,1656.4,4.82963]
[1744626030170,4.82874,1656.8,1656.4,9.65921]
[1744626030371,4.82917,1656.6,1656.3,0.966034]
[1744626030581,4.82917,1656.6,1656.1,0.8252]
[1744626030582,4.82917,1656.6,1656.2,4.83019]
[1744626031265,4.82917,1656.6,1656.2,9.66039]
[1744626031478,4.82917,1656.6,1656.2,9.66035]
[1744626031846,4.82891,1656.7,1656.3,4.83003]
[1744626032175,4.8286,1656.8,1656.4,4.82963]
[1744626032575,13.8519,1656.9,1656.5,0.06036744]
[1744626032898,4.82918,1656.6,1656.1,5.65566]
[1744626033055,4.82952,1656.5,1656.1,4.83044]
[1744626033250,9.0236,1656.9,1655.9,47.041]
[1744626033251,9.0236,1656.9,1656.0,4.83091]
[1744626033482,13.85204,1656.9,1656.5,4.82936]
[1744626033670,13.85204,1656.9,1656.5,4.82931]
[1744626033671,5.60004,1656.9,1656.5,4.82931]
[1744626033881,10.42853,1656.9,1656.5,5.312241]
[1744626034083,5.60004,1656.9,1656.5,5.312241]
[1744626034380,4.82877,1656.8,1656.4,4.8296]
[1744626034549,0.7716,1656.9,1656.6,4.82904]
[1744626034743,4.82868,1656.8,1656.4,4.82957]
[1744626034947,0.7716,1656.9,1656.3,0.7768]
[1744626034948,5.59992,1656.9,1656.6,4.8289]
[1744626035162,4.82774,1657.1,1656.7,4.82871]
[1744626035476,4.82819,1657.0,1656.6,4.82901]
[1744626035791,4.82816,1657.0,1656.6,4.82901]
[1744626036153,4.82875,1656.8,1656.4,4.8297]
[1744626036352,4.82771,1657.1,1656.3,4.83001]
[1744626036353,4.82929,1656.6,1656.3,4.83001]
[1744626036662,4.82929,1656.6,1656.2,9.66051]
[1744626036865,9.6587,1656.6,1656.2,4.8302]
[1744626037078,4.82929,1656.6,1656.2,9.6604]
[1744626037285,4.82929,1656.6,1656.2,10.62644]
[1744626037496,4.82929,1656.6,1656.3,4.83002]
[1744626038293,5.64361,1656.7,1656.3,4.82992]
[1744626038790,4.82926,1656.6,1656.2,5.79633]
[1744626038995,4.82956,1656.5,1656.2,5.79633]
[1744626039997,4.82956,1656.5,1656.2,0.96604]
[1744626040187,9.65859,1656.6,1656.2,5.79617]
[1744626040392,9.65859,1656.6,1656.2,4.83013]
[1744626041095,9.65859,1656.6,1656.2,9.66035]
[1744626041096,4.82922,1656.6,1656.2,9.66035]
[1744626041291,9.65856,1656.6,1656.2,9.66035]
[1744626041468,9.65857,1656.6,1656.2,9.66035]
[1744626041671,9.65857,1656.6,1656.2,4.83013]
[1744626041995,4.82934,1656.6,1656.2,5.796301]
[1744626042213,9.65877,1656.6,1656.2,5.796301]
[1744626042547,4.82951,1656.5,1656.1,4.8305]
[1744626042798,4.82986,1656.4,1656.1,4.8305]
[1744626043388,4.83004,1656.3,1656.0,4.83086]
[1744626044302,10.99921,1656.6,1655.8,4.83138]
[1744626044499,4.83082,1656.1,1655.7,4.83166]
[1744626044701,4.83082,1656.1,1655.8,4.83146]
[1744626045620,5.64992,1656.0,1655.4,0.7817]
[1744626045820,0.8189,1656.0,1655.8,4.83135]
[1744626045971,5.64942,1656.2,1655.9,4.83105]
[1744626046166,0.8236,1656.5,1656.2,4.83018]
[1744626046471,10.48292,1656.5,1656.1,9.661]
[1744626046670,10.48292,1656.5,1656.1,4.8305]
[1744626046866,0.8236,1656.5,1656.2,4.83019]
[1744626047103,0.8236,1656.5,1656.3,4.82999]
[1744626047323,0.7675,1656.8,1656.5,4.82936]
[1744626047477,5.59628,1656.8,1656.4,4.82963]
[1744626047675,9.65802,1656.7,1656.4,4.82963]
[1744626048003,4.82897,1656.7,1656.4,4.82963]
[1744626048209,5.59614,1656.8,1656.4,4.82962]
[1744626048391,5.59614,1656.8,1656.3,0.06036836]
[1744626048392,8.255,1657.0,1656.7,4.82859]
[1744626048596,8.255,1657.0,1656.7,9.65734]
[1744626048903,8.255,1657.0,1656.7,4.82859]
[1744626049322,10.4791,1657.1,1656.7,4.82859]
[1744626049627,4.82839,1656.9,1656.5,4.82941]
[1744626049787,4.82861,1656.8,1656.5,4.82941]
[1744626049991,4.82839,1656.9,1656.5,9.65878]
[1744626050397,4.82839,1656.9,1656.5,4.82937]
[1744626050398,9.65686,1656.9,1656.5,4.82937]
[1744626050599,4.82861,1656.8,1656.5,4.82937]
[1744626051298,4.82839,1656.9,1656.5,9.6587]
[1744626051699,4.82839,1656.9,1656.5,4.82933]
[1744626052023,3.0,1656.7,1655.8,5.314585]
[1744626052187,4.83067,1656.1,1655.9,0.12]
[1744626052499,4.83044,1656.2,1655.9,0.12]
[1744626052707,4.83044,1656.2,1655.9,4.95118]
[1744626053012,4.8298,1656.4,1656.0,4.83081]
[1744626053378,9.65981,1656.4,1656.0,4.83081]
[1744626053583,4.83006,1656.3,1656.0,4.83081]
[1744626053807,10.41613,1656.6,1656.2,4.8302]
[1744626054001,5.5867,1656.6,1656.2,4.8302]
[1744626054503,3.0,1656.7,1656.4,4.82961]
[1744626054504,4.82888,1656.7,1656.4,4.82961]
[1744626054708,5.62544,1656.9,1656.5,4.82934]
[1744626054904,5.62544,1656.9,1656.5,9.65869]
[1744626055217,5.62544,1656.9,1656.6,4.82916]
[1744626055424,10.45388,1656.9,1656.6,4.82916]
[1744626055632,10.45388,1656.9,1656.5,9.65869]
[1744626055918,5.62544,1656.9,1656.6,4.82901]
[1744626056818,5.62544,1656.9,1656.5,5.795279]
[1744626056987,4.82861,1656.8,1656.5,4.82941]
[1744626057201,9.65738,1656.8,1656.4,9.65938]
[1744626057419,9.65735,1656.8,1656.4,9.65938]
[1744626057616,4.82892,1656.7,1656.4,4.82965]
[1744626057812,4.82937,1656.6,1656.2,5.31322]
[1744626058018,0.797,1656.9,1656.2,5.31322]
[1744626058019,4.82893,1656.7,1656.2,5.31326]
[1744626058316,4.82893,1656.7,1656.0,0.7751]
[1744626058317,4.82962,1656.5,1656.1,4.83057]
[1744626058547,5.5993,1656.5,1656.0,0.7751]
[1744626058690,5.5993,1656.5,1656.3,4.83003]
[1744626058691,0.7698,1656.5,1656.3,4.83003]
[1744626058887,9.65851,1656.6,1656.2,4.83029]
[1744626059104,4.82917,1656.6,1656.2,9.66053]
[1744626059303,4.82917,1656.6,1656.3,4.83004]
[1744626060018,9.6586,1656.6,1656.2,5.796333]
[1744626060323,4.82921,1656.6,1656.2,4.83023]
[1744626060518,5.59511,1656.7,1656.2,4.83023]
[1744626060821,0.8096,1657.0,1656.7,4.8287]
[1744626061615,3.29633326,1657.3,1656.4,5.64343]
[1744626061616,0.8025,1657.3,1656.8,0.06036054]
[1744626061827,0.31496767,1657.7,1657.0,4.828]
[1744626062118,0.31496767,1657.7,1657.6,4.82625]
[1744626062498,5.64975,1658.1,1657.7,9.65159]
[1744626062921,12.91905,1658.4,1657.9,4.82538]
[1744626063121,0.05,1658.4,1657.9,13.65848]
[1744626064522,4.87403,1658.4,1657.9,13.65848]
[1744626064711,4.82437,1658.3,1657.8,4.82555]
[1744626065026,0.8553,1658.4,1657.9,4.88569726]
[1744626065232,0.8553,1658.4,1657.9,4.82538]
[1744626065406,0.8553,1658.4,1657.9,5.85077766]
[1744626065723,0.8553,1658.4,1657.9,5.790473]
[1744626065924,0.05,1658.4,1657.9,4.82538]
[1744626067022,9.69824,1658.4,1657.9,4.82538]
[1744626067223,0.05,1658.4,1657.9,4.88569126]
[1744626067424,0.05,1658.4,1657.9,5.62788]
[1744626067626,1.5e-06,1658.0,1657.9,5.62788]
[1744626068407,1.5e-06,1658.0,1657.9,5.68817151]
[1744626068598,1.5e-06,1658.0,1657.9,11.77357699]
[1744626069725,1.5e-06,1658.0,1657.9,12.26328548]
[1744626070227,0.05,1658.4,1657.6,0.7538]
[1744626070228,4.82452,1658.2,1657.6,0.7538]
[1744626070428,0.05,1658.4,1657.6,0.7538]
[1744626070429,0.8131,1658.3,1657.6,0.7538]
[1744626070637,5.63732,1658.3,1657.9,4.82511]
[1744626070801,6.5679215,1661.3,1658.9,0.2]
[1744626071001,15.90614709,1662.6,1660.3,0.51568116]
[1744626071250,23.00226249,1663.4,1660.3,0.51568116]
[1744626071251,1.807234,1664.5,1663.0,0.2]
[1744626071423,1.807234,1664.5,1664.2,4.80708]
[1744626071733,24.91296048,1665.2,1665.1,4.80451]
[1744626071936,23.34791308,1665.2,1665.1,4.80451]
[1744626072232,23.04791707,1665.2,1664.8,4.80538]
[1744626072533,22.79791707,1665.2,1664.5,3.29633326]
[1744626072755,22.79791707,1665.2,1664.6,0.06004317]
[1744626072967,4.80266,1665.8,1664.5,3.29633326]
[1744626072968,4.79936,1666.9,1664.5,4.80619]
[1744626073255,47.233,1667.1,1664.5,4.80614]
[1744626073256,4.80341,1665.5,1664.5,4.80614]
[1744626073456,52.253111,1665.4,1664.5,4.80604]
[1744626073634,52.36668156,1665.4,1664.2,7.95864296]
[1744626073830,47.56299156,1665.4,1664.2,4.9529205]
[1744626074141,47.56299156,1665.4,1663.7,3.09440729]
[1744626074342,47.56299156,1665.4,1664.1,3.08810321]
[1744626074546,2.66e-06,1664.8,1664.7,4.80567]
[1744626074854,28.43581808,1666.9,1665.4,0.2]
[1744626075054,28.43581808,1666.9,1666.6,4.80019]
[1744626075262,28.43581808,1666.9,1666.6,5.280209]
[1744626075453,28.43581808,1666.9,1666.2,0.05998699]
[1744626075657,28.13601333,1666.9,1666.5,4.80037]
[1744626075863,0.2,1666.8,1666.3,0.50647962]
[1744626076153,4.80059,1666.5,1664.8,5.59558]
[1744626076364,4.80396,1665.3,1664.3,5.59721]
[1744626076658,0.480396,1665.2,1663.7,4.80855]
[1744626076861,0.05109837,1665.1,1664.6,4.80575]
[1744626077027,0.12984038,1665.1,1664.7,0.06005847]
[1744626077374,0.7629,1666.1,1664.1,0.05]
[1744626077375,46.905,1665.3,1664.1,0.05]
[1744626077530,4.80514,1664.9,1664.2,0.0600455]
[1744626077730,4.80514,1664.9,1664.1,0.05]
[1744626077731,4.80486,1665.0,1664.1,0.05]
[1744626078039,0.7594,1666.7,1664.8,0.2]
[1744626078243,4.79904,1667.0,1665.6,4.80292]
[1744626078438,1.2353505,1667.3,1665.2,4.80422]
[1744626078439,4.85065837,1666.9,1665.2,4.80422]
[1744626078648,46.905,1667.0,1665.4,4.80365]
[1744626078851,1.2353505,1667.3,1665.9,0.8143]
[1744626079043,4.79895,1667.1,1666.0,4.91164818]
[1744626079380,0.05109837,1667.2,1666.1,4.9111816]
[1744626079381,4.79866,1667.2,1666.1,4.9111816]
[1744626079534,4.79991,1666.7,1665.4,4.80365]
[1744626079729,4.79991,1666.7,1664.7,0.7788]
[1744626079730,47.351991,1666.6,1664.7,0.7788]
[1744626079936,4.80308,1665.6,1664.7,0.7788]
[1744626080229,4.80105,1666.3,1664.7,0.7788]
[1744626080230,46.872,1665.5,1664.7,0.7788]
[1744626080538,46.872,1665.5,1664.3,24.66424664]
[1744626080539,4.80366,1665.4,1664.3,21.67437622]
[1744626080733,4.80366,1665.4,1664.4,2.16743762]
[1744626080734,4.80471,1665.1,1664.4,2.16743762]
[1744626081059,3.02449225,1666.5,1664.5,0.10985709]
[1744626081060,47.6917,1666.1,1664.5,0.10985709]
[1744626081259,46.872,1666.1,1665.3,4.80392]
[1744626081461,46.872,1666.1,1665.0,0.7885]
[1744626081462,4.80286,1665.7,1665.0,0.7885]
[1744626081758,4.80406,1665.3,1665.1,7.97720358]
[1744626081961,45.59733815,1665.2,1665.1,7.97720358]
[1744626082460,40.79311815,1665.2,1665.1,7.97720358]
[1744626082636,45.59733815,1665.2,1665.1,7.97720358]
[1744626083162,45.59733815,1665.2,1664.9,5.78897625]
[1744626083163,4.80467,1665.1,1664.9,5.78897625]
[1744626083360,34.71448972,1665.2,1664.9,5.78897625]
[1744626084061,4.8048,1665.0,1664.9,5.78897625]
[1744626084233,7.8048,1665.0,1664.9,6.25e-06]
[1744626084782,7.8048,1665.0,1664.4,9.13e-06]
[1744626084783,7.80538,1664.8,1664.4,9.13e-06]
[1744626084930,4.80624,1664.5,1664.4,9.13e-06]
[1744626085132,8.81856437,1664.5,1664.1,6.39e-06]
[1744626085353,4.80689,1664.3,1664.1,6.39e-06]
[1744626085593,46.89909837,1664.7,1664.1,6.39e-06]
[1744626085768,4.807,1664.3,1664.1,6.39e-06]
[1744626085969,4.80643,1664.5,1664.1,6.39e-06]
[1744626086200,4.80677,1664.4,1664.1,6.39e-06]
[1744626086358,4.80698,1664.3,1664.1,6.39e-06]
[1744626086557,4.6848,1664.6,1664.1,6.39e-06]
[1744626086758,4.80519,1664.9,1664.1,4.80722639]
[1744626086979,4.80562,1664.8,1664.3,0.09417732]
[1744626087182,9.61126,1664.8,1664.4,0.06006916]
[1744626087365,5.766616,1664.8,1664.3,0.09417732]
[1744626087572,50.37645552,1665.1,1664.3,0.09417732]
[1744626087779,50.37643552,1665.1,1664.3,0.09417732]
[1744626087981,4.80586,1664.7,1664.3,0.09417732]
[1744626088465,4.85618837,1664.9,1664.3,0.09417732]
[1744626088890,4.80653,1664.4,1664.3,0.09417732]
[1744626089208,4.8045,1665.2,1664.3,0.09417732]
[1744626089209,4.80442,1665.2,1664.3,0.09417732]
[1744626089373,4.80539,1664.8,1664.3,0.09417732]
[1744626089565,4.8048,1665.0,1664.3,0.09417732]
[1744626089893,4.80539,1664.8,1664.3,0.09417732]
[1744626090193,4.80653,1664.4,1664.3,0.09417732]
[1744626090582,4.80711,1664.2,1664.1,6.39e-06]
[1744626090896,52.613513,1664.2,1664.1,6.39e-06]
[1744626091070,4.80657,1664.4,1664.1,6.39e-06]
[1744626091273,4.80711,1664.2,1664.1,6.39e-06]
[1744626092972,51.65211,1664.2,1664.1,6.39e-06]
[1744626093804,46.845,1664.2,1664.1,6.39e-06]
[1744626094104,51.65211,1664.2,1664.1,6.39e-06]
[1744626094276,47.328442,1665.1,1664.1,6.39e-06]
[1744626094484,9.61235,1664.6,1664.1,6.39e-06]
[1744626094777,4.80711,1664.2,1664.1,6.39e-06]
[1744626094970,51.65511,1664.2,1664.1,6.39e-06]
[1744626095168,46.848,1664.2,1664.1,6.39e-06]
[1744626095387,40.76552415,1664.2,1664.1,6.39e-06]
[1744626095587,4.80628,1664.5,1664.1,6.39e-06]
[1744626095802,51.5808442,1665.0,1664.1,6.39e-06]
[1744626096002,4.80542,1664.8,1664.2,4.80709]
[1744626096219,4.80596,1664.6,1664.2,0.18767724]
[1744626096372,51.5808442,1665.0,1664.3,0.24775139]
[1744626096373,4.80509,1664.9,1664.3,0.24775139]
[1744626096573,4.80524,1664.9,1664.4,0.24775594]
[1744626096803,4.80563,1664.8,1664.5,0.18767724]
[1744626097097,0.480563,1664.8,1664.5,0.18767724]
[1744626097315,4.80528,1664.9,1664.6,0.06006696]
[1744626097518,4.80556,1664.8,1664.4,0.06006748]
[1744626097699,50.30397069,1665.0,1664.1,4.80737639]
[1744626097700,4.80607,1664.6,1664.1,4.80737639]
[1744626097910,50.30397069,1665.0,1664.1,4.80725639]
[1744626097911,44.2232346,1665.0,1664.1,4.80725639]
[1744626098112,4.80627,1664.5,1664.2,0.1876847]
[1744626098326,4.80595,1664.6,1664.2,0.1876847]
[1744626098512,4.80682,1664.3,1664.1,6.39e-06]
[1744626098826,4.80682,1664.3,1664.2,0.18771493]
[1744626099415,4.80657,1664.4,1664.2,0.18771493]
[1744626099733,46.53185664,1664.4,1664.2,0.18771493]
[1744626099888,46.53185664,1664.4,1664.3,0.18771493]
[1744626100086,4.80517,1664.9,1664.4,4.8063]